[Event "Titled Tuesday Blitz May 4 2021"]
[White "Todorovic, Bojan"]
[Black "Kovalev, Egor"]
[WhiteFideId "917087"]
[BlackFideId "24124117"]
[WhiteElo "2266"]
[BlackElo "2253"]
[Result "0-1"]
[Round "01"]
[TimeControl "180+1"]
[Date "2021.05.04"]
[WhiteClock "0:00:03"]
[BlackClock "0:01:00"]

1. Nf3 {[%clk 0:02:58]}  Nf6 {[%clk 0:02:57]} 2. c4 {[%clk 0:02:57]}  g6 {[%clk 0:02:56]} 3. Nc3 {[%clk 0:02:56]}  d5 {[%clk 0:02:56]} 4. cxd5 {[%clk 0:02:54]}  Nxd5 {[%clk 0:02:56]} 5. Qa4+ {[%clk 0:02:54]}  Nc6 {[%clk 0:02:53]} 6. Ne5 {[%clk 0:02:50]}  Nb4 {[%clk 0:02:52]} 7. Nxc6 {[%clk 0:02:26]}  Nxc6 {[%clk 0:02:53]} 8. g3 {[%clk 0:02:25]}  Bg7 {[%clk 0:02:53]} 9. Bg2 {[%clk 0:02:24]}  O-O {[%clk 0:02:53]} 10. O-O {[%clk 0:02:14]}  Nd4 {[%clk 0:02:47]} 11. e3 {[%clk 0:02:02]}  Bd7 {[%clk 0:02:46]} 12. Qd1 {[%clk 0:02:01]}  Nc6 {[%clk 0:02:23]} 13. d4 {[%clk 0:02:00]}  e5 {[%clk 0:02:23]} 14. d5 {[%clk 0:01:53]}  Ne7 {[%clk 0:02:21]} 15. b3 {[%clk 0:01:50]}  Nc8 {[%clk 0:02:12]} 16. Ba3 {[%clk 0:01:34]}  Nd6 {[%clk 0:02:11]} 17. Ne4 {[%clk 0:01:33]}  Bb5 {[%clk 0:01:57]} 18. Re1 {[%clk 0:01:27]}  f5 {[%clk 0:01:57]} 19. Nc5 {[%clk 0:01:22]}  Bd7 {[%clk 0:01:52]} 20. Rc1 {[%clk 0:01:14]}  e4 {[%clk 0:01:43]} 21. Qc2 {[%clk 0:01:03]}  Rc8 {[%clk 0:01:31]} 22. Bf1 {[%clk 0:01:01]}  Rf7 {[%clk 0:01:17]} 23. Red1 {[%clk 0:00:44]}  Qf6 {[%clk 0:01:14]} 24. Nxd7 {[%clk 0:00:38]}  Rxd7 {[%clk 0:01:15]} 25. Qc5 {[%clk 0:00:28]}  a6 {[%clk 0:01:15]} 26. Rc2 {[%clk 0:00:24]}  h5 {[%clk 0:01:15]} 27. Bb2 {[%clk 0:00:23]}  Qe7 {[%clk 0:01:13]} 28. Bxg7 {[%clk 0:00:21]}  Qxg7 {[%clk 0:01:14]} 29. Rd4 {[%clk 0:00:21]}  Kh7 {[%clk 0:01:13]} 30. h4 {[%clk 0:00:20]}  Kh6 {[%clk 0:01:14]} 31. b4 {[%clk 0:00:17]}  g5 {[%clk 0:01:14]} 32. hxg5+ {[%clk 0:00:16]}  Qxg5 {[%clk 0:01:14]} 33. Qc3 {[%clk 0:00:10]}  h4 {[%clk 0:01:10]} 34. Qe1 {[%clk 0:00:08]}  Rg8 {[%clk 0:01:08]} 35. Kg2 {[%clk 0:00:03]}  Rdg7 {[%clk 0:01:00]} 0-1


[Site "https://www.chess.com"]

[Event "Titled Tuesday Blitz May 4 2021"]
[White "Tristan, Leonardo"]
[Black "Alexeev, Alexey"]
[WhiteFideId "113816"]
[BlackFideId "14106663"]
[WhiteElo "2404"]
[BlackElo "2185"]
[Result "1-0"]
[Round "01"]
[TimeControl "180+1"]
[Date "2021.05.04"]
[WhiteClock "0:02:32"]
[BlackClock "0:02:37"]

1. d4 {[%clk 0:03:00]}  d5 {[%clk 0:02:59]} 2. Bf4 {[%clk 0:02:56]}  Nf6 {[%clk 0:02:58]} 3. e3 {[%clk 0:02:56]}  c5 {[%clk 0:02:56]} 4. Nf3 {[%clk 0:02:57]}  cxd4 {[%clk 0:02:56]} 5. exd4 {[%clk 0:02:57]}  a6 {[%clk 0:02:55]} 6. Bd3 {[%clk 0:02:53]}  Nc6 {[%clk 0:02:54]} 7. c3 {[%clk 0:02:53]}  Bg4 {[%clk 0:02:53]} 8. Nbd2 {[%clk 0:02:52]}  e6 {[%clk 0:02:53]} 9. Qb3 {[%clk 0:02:48]}  Qc8 {[%clk 0:02:52]} 10. a4 {[%clk 0:02:45]}  Be7 {[%clk 0:02:51]} 11. O-O {[%clk 0:02:45]}  O-O {[%clk 0:02:51]} 12. Rfe1 {[%clk 0:02:45]}  Bxf3 {[%clk 0:02:42]} 13. Nxf3 {[%clk 0:02:45]}  Rd8 {[%clk 0:02:40]} 14. Qc2 {[%clk 0:02:40]}  Qd7 {[%clk 0:02:39]} 15. Ne5 {[%clk 0:02:39]}  Qe8 {[%clk 0:02:37]} 16. Qe2 {[%clk 0:02:32]} 1-0


[Site "https://www.chess.com"]

[Event "Titled Tuesday Blitz May 4 2021"]
[White "Tuleyeva-Aketayeva, Dana"]
[Black "Kovacsy, Barnabas"]
[WhiteFideId "13701932"]
[BlackFideId "769290"]
[WhiteElo "1944"]
[BlackElo "1938"]
[Result "0-1"]
[Round "01"]
[TimeControl "180+1"]
[Date "2021.05.04"]
[WhiteClock "0:01:10"]
[BlackClock "0:01:15"]

1. d4 {[%clk 0:03:00]}  Nf6 {[%clk 0:02:59]} 2. c4 {[%clk 0:03:01]}  g6 {[%clk 0:02:59]} 3. Nf3 {[%clk 0:03:02]}  Bg7 {[%clk 0:02:59]} 4. g3 {[%clk 0:03:02]}  d5 {[%clk 0:02:59]} 5. Bg2 {[%clk 0:03:03]}  O-O {[%clk 0:02:58]} 6. Nbd2 {[%clk 0:03:03]}  dxc4 {[%clk 0:02:51]} 7. Nxc4 {[%clk 0:03:03]}  c6 {[%clk 0:02:51]} 8. O-O {[%clk 0:03:03]}  Nbd7 {[%clk 0:02:44]} 9. Nce5 {[%clk 0:03:03]}  Nxe5 {[%clk 0:02:44]} 10. Nxe5 {[%clk 0:03:03]}  Ng4 {[%clk 0:02:44]} 11. Nxg4 {[%clk 0:03:02]}  Bxg4 {[%clk 0:02:45]} 12. Be3 {[%clk 0:03:00]}  Qa5 {[%clk 0:02:42]} 13. h3 {[%clk 0:02:59]}  Bf5 {[%clk 0:02:41]} 14. Qb3 {[%clk 0:02:56]}  Qb6 {[%clk 0:02:34]} 15. Qxb6 {[%clk 0:02:41]}  axb6 {[%clk 0:02:35]} 16. g4 {[%clk 0:02:41]}  Be6 {[%clk 0:02:34]} 17. a3 {[%clk 0:02:41]}  b5 {[%clk 0:02:33]} 18. Rad1 {[%clk 0:02:39]}  Rfd8 {[%clk 0:02:31]} 19. Rd2 {[%clk 0:02:38]}  Bd5 {[%clk 0:02:30]} 20. Rfd1 {[%clk 0:02:35]}  Bxg2 {[%clk 0:02:22]} 21. Kxg2 {[%clk 0:02:36]}  Rd5 {[%clk 0:02:23]} 22. Bf4 {[%clk 0:02:35]}  Rad8 {[%clk 0:02:22]} 23. Be3 {[%clk 0:02:25]}  Kf8 {[%clk 0:02:14]} 24. Kf3 {[%clk 0:02:25]}  e6 {[%clk 0:02:13]} 25. Bg5 {[%clk 0:02:19]}  Rxg5 {[%clk 0:02:12]} 26. e4 {[%clk 0:02:07]}  h5 {[%clk 0:02:02]} 27. Kg3 {[%clk 0:01:51]}  hxg4 {[%clk 0:01:55]} 28. hxg4 {[%clk 0:01:51]}  f5 {[%clk 0:01:49]} 29. exf5 {[%clk 0:01:37]}  gxf5 {[%clk 0:01:47]} 30. f3 {[%clk 0:01:36]}  fxg4 {[%clk 0:01:47]} 31. fxg4 {[%clk 0:01:35]}  Rgd5 {[%clk 0:01:47]} 32. Rf1+ {[%clk 0:01:35]}  Kg8 {[%clk 0:01:46]} 33. Re1 {[%clk 0:01:33]}  Rxd4 {[%clk 0:01:45]} 34. Rxd4 {[%clk 0:01:33]}  Rxd4 {[%clk 0:01:46]} 35. Rxe6 {[%clk 0:01:33]}  Rd3+ {[%clk 0:01:47]} 36. Kf4 {[%clk 0:01:31]}  Bxb2 {[%clk 0:01:42]} 37. Re7 {[%clk 0:01:28]}  Bxa3 {[%clk 0:01:42]} 38. Rxb7 {[%clk 0:01:27]}  Rd5 {[%clk 0:01:39]} 39. g5 {[%clk 0:01:26]}  Bf8 {[%clk 0:01:37]} 40. Kg4 {[%clk 0:01:25]}  b4 {[%clk 0:01:25]} 41. Kh5 {[%clk 0:01:24]}  c5 {[%clk 0:01:23]} 42. Kg6 {[%clk 0:01:15]}  c4 {[%clk 0:01:19]} 43. Kf6 {[%clk 0:01:14]}  Rd6+ {[%clk 0:01:18]} 44. Kf5 {[%clk 0:01:11]}  Rc6 {[%clk 0:01:17]} 45. g6 {[%clk 0:01:10]}  c3 {[%clk 0:01:17]} 46. g7 {[%clk 0:01:10]}  Bxg7 {[%clk 0:01:15]} 47. Rxb4 {[%clk 0:01:10]}  c2 {[%clk 0:01:15]} 0-1


[Site "https://www.chess.com"]

[Event "Titled Tuesday Blitz May 4 2021"]
[White "Tutisani, Noe"]
[Black "katchesskat"]
[WhiteFideId "13602853"]
[WhiteElo "2227"]
[BlackElo "2260"]
[Result "1-0"]
[Round "01"]
[TimeControl "180+1"]
[Date "2021.05.04"]
[WhiteClock "0:01:48"]
[BlackClock "0:00:16"]

1. e4 {[%clk 0:02:57]}  c5 {[%clk 0:03:00]} 2. Nf3 {[%clk 0:02:56]}  e6 {[%clk 0:03:00]} 3. d4 {[%clk 0:02:57]}  cxd4 {[%clk 0:03:00]} 4. Nxd4 {[%clk 0:02:58]}  a6 {[%clk 0:03:00]} 5. Nc3 {[%clk 0:02:58]}  Qc7 {[%clk 0:03:00]} 6. Bd3 {[%clk 0:02:58]}  Nf6 {[%clk 0:02:59]} 7. O-O {[%clk 0:02:58]}  b5 {[%clk 0:02:59]} 8. Kh1 {[%clk 0:02:57]}  Bb7 {[%clk 0:02:59]} 9. f4 {[%clk 0:02:57]}  b4 {[%clk 0:02:59]} 10. e5 {[%clk 0:02:53]}  bxc3 {[%clk 0:02:58]} 11. exf6 {[%clk 0:02:54]}  gxf6 {[%clk 0:02:55]} 12. bxc3 {[%clk 0:02:53]}  Rg8 {[%clk 0:02:47]} 13. Rf2 {[%clk 0:02:53]}  Qxc3 {[%clk 0:02:42]} 14. Be3 {[%clk 0:02:53]}  Bc5 {[%clk 0:02:40]} 15. Ne2 {[%clk 0:02:38]}  Qxa1 {[%clk 0:02:04]} 16. Qxa1 {[%clk 0:02:33]}  Bxe3 {[%clk 0:02:04]} 17. Qb2 {[%clk 0:02:15]}  Ra7 {[%clk 0:01:40]} 18. Be4 {[%clk 0:02:10]}  Bxe4 {[%clk 0:01:09]} 19. Qxb8+ {[%clk 0:02:09]}  Ke7 {[%clk 0:01:08]} 20. Qb4+ {[%clk 0:02:09]}  d6 {[%clk 0:01:05]} 21. Qxe4 {[%clk 0:02:09]}  Bxf2 {[%clk 0:01:04]} 22. Qxh7 {[%clk 0:02:06]}  Rb8 {[%clk 0:00:55]} 23. h4 {[%clk 0:02:06]}  Raa8 {[%clk 0:00:47]} 24. g3 {[%clk 0:02:06]}  f5 {[%clk 0:00:42]} 25. Qg7 {[%clk 0:02:04]}  Rg8 {[%clk 0:00:40]} 26. Qc3 {[%clk 0:02:04]}  Rac8 {[%clk 0:00:39]} 27. Qd3 {[%clk 0:02:04]}  Rc6 {[%clk 0:00:20]} 28. Kg2 {[%clk 0:01:58]}  Bb6 {[%clk 0:00:20]} 29. c3 {[%clk 0:01:56]}  Rgc8 {[%clk 0:00:20]} 30. a4 {[%clk 0:01:54]}  Rc4 {[%clk 0:00:19]} 31. h5 {[%clk 0:01:54]}  Rxa4 {[%clk 0:00:19]} 32. Qb1 {[%clk 0:01:49]}  Bc5 {[%clk 0:00:15]} 33. Qb7+ {[%clk 0:01:48]}  Kd8 {[%clk 0:00:15]} 34. h6 {[%clk 0:01:47]}  Rc7 {[%clk 0:00:12]} 35. Qb8+ {[%clk 0:01:46]}  Rc8 {[%clk 0:00:12]} 36. Qxc8+ {[%clk 0:01:46]}  Kxc8 {[%clk 0:00:12]} 37. h7 {[%clk 0:01:47]}  Ra2 {[%clk 0:00:13]} 38. h8=Q+ {[%clk 0:01:47]}  Kc7 {[%clk 0:00:13]} 39. Kf3 {[%clk 0:01:47]}  Rc2 {[%clk 0:00:13]} 40. Qf8 {[%clk 0:01:46]}  Kb6 {[%clk 0:00:13]} 41. Qxf7 {[%clk 0:01:46]}  e5 {[%clk 0:00:14]} 42. Qxf5 {[%clk 0:01:46]}  exf4 {[%clk 0:00:14]} 43. Qxc2 {[%clk 0:01:46]}  a5 {[%clk 0:00:14]} 44. gxf4 {[%clk 0:01:46]}  Kb5 {[%clk 0:00:14]} 45. f5 {[%clk 0:01:46]}  a4 {[%clk 0:00:15]} 46. f6 {[%clk 0:01:45]}  a3 {[%clk 0:00:16]} 47. Qb3+ {[%clk 0:01:45]}  Kc6 {[%clk 0:00:16]} 48. Nd4+ {[%clk 0:01:45]}  Bxd4 {[%clk 0:00:16]} 49. cxd4 {[%clk 0:01:46]}  d5 {[%clk 0:00:16]} 50. Qxa3 {[%clk 0:01:46]}  Kd7 {[%clk 0:00:16]} 51. f7 {[%clk 0:01:47]}  Ke6 {[%clk 0:00:15]} 52. f8=Q {[%clk 0:01:47]}  Kd7 {[%clk 0:00:16]} 53. Qad6# {[%clk 0:01:48]} 1-0


[Site "https://www.chess.com"]

[Event "Titled Tuesday Blitz May 4 2021"]
[White "Urazayev, Arystanbek"]
[Black "Dmitrenko, Viktor"]
[WhiteFideId "13709810"]
[BlackFideId "14110270"]
[WhiteElo "2321"]
[BlackElo "2338"]
[Result "1-0"]
[Round "01"]
[TimeControl "180+1"]
[Date "2021.05.04"]
[WhiteClock "0:01:27"]
[BlackClock "0:00:07"]

1. e4 {[%clk 0:02:56]}  c6 {[%clk 0:02:31]} 2. d4 {[%clk 0:02:55]}  d5 {[%clk 0:02:32]} 3. e5 {[%clk 0:02:55]}  Bf5 {[%clk 0:02:27]} 4. Nd2 {[%clk 0:02:55]}  e6 {[%clk 0:02:23]} 5. Nb3 {[%clk 0:02:55]}  c5 {[%clk 0:02:23]} 6. dxc5 {[%clk 0:02:55]}  Bxc5 {[%clk 0:02:21]} 7. Bb5+ {[%clk 0:02:52]}  Nc6 {[%clk 0:02:18]} 8. Bxc6+ {[%clk 0:02:46]}  bxc6 {[%clk 0:02:16]} 9. Nxc5 {[%clk 0:02:46]}  Qa5+ {[%clk 0:02:15]} 10. c3 {[%clk 0:02:44]}  Qxc5 {[%clk 0:02:16]} 11. Ne2 {[%clk 0:02:34]}  Ne7 {[%clk 0:02:03]} 12. O-O {[%clk 0:02:34]}  O-O {[%clk 0:01:52]} 13. Be3 {[%clk 0:02:30]}  Qb5 {[%clk 0:01:46]} 14. b4 {[%clk 0:02:21]}  Bd3 {[%clk 0:01:33]} 15. Nd4 {[%clk 0:02:21]}  Qc4 {[%clk 0:01:33]} 16. Re1 {[%clk 0:02:21]}  a5 {[%clk 0:01:05]} 17. Rc1 {[%clk 0:02:10]}  Bg6 {[%clk 0:00:59]} 18. a3 {[%clk 0:02:06]}  Nf5 {[%clk 0:00:50]} 19. Nxf5 {[%clk 0:01:47]}  Bxf5 {[%clk 0:00:51]} 20. Bc5 {[%clk 0:01:47]}  Rfb8 {[%clk 0:00:49]} 21. h3 {[%clk 0:01:46]}  h6 {[%clk 0:00:38]} 22. Bd6 {[%clk 0:01:44]}  Rb7 {[%clk 0:00:27]} 23. Qd4 {[%clk 0:01:44]}  Bd3 {[%clk 0:00:20]} 24. Qe3 {[%clk 0:01:34]}  Qe4 {[%clk 0:00:10]} 25. Qd2 {[%clk 0:01:28]}  Qc4 {[%clk 0:00:08]} 26. Re3 {[%clk 0:01:27]}  Bg6 {[%clk 0:00:07]} 27. Rg3 {[%clk 0:01:27]} 1-0


[Site "https://www.chess.com"]

[Event "Titled Tuesday Blitz May 4 2021"]
[White "Van Foreest, Jorden"]
[Black "Najdin, Danil"]
[WhiteFideId "1039784"]
[BlackFideId "4172426"]
[WhiteElo "2622"]
[BlackElo "2193"]
[Result "1-0"]
[Round "01"]
[TimeControl "180+1"]
[Date "2021.05.04"]
[WhiteClock "0:00:48"]
[BlackClock "0:00:02"]

1. e4 {[%clk 0:03:00]}  e5 {[%clk 0:02:59]} 2. Nf3 {[%clk 0:02:56]}  Nc6 {[%clk 0:02:59]} 3. Bc4 {[%clk 0:02:55]}  Nf6 {[%clk 0:02:53]} 4. d4 {[%clk 0:02:53]}  exd4 {[%clk 0:02:52]} 5. Bg5 {[%clk 0:02:51]}  h6 {[%clk 0:02:28]} 6. Bh4 {[%clk 0:02:47]}  Be7 {[%clk 0:02:17]} 7. e5 {[%clk 0:02:46]}  Ne4 {[%clk 0:02:17]} 8. Bxe7 {[%clk 0:02:46]}  Qxe7 {[%clk 0:02:17]} 9. O-O {[%clk 0:02:46]}  O-O {[%clk 0:02:13]} 10. Re1 {[%clk 0:02:44]}  Ng5 {[%clk 0:02:02]} 11. Nxd4 {[%clk 0:02:41]}  Nxd4 {[%clk 0:02:01]} 12. Qxd4 {[%clk 0:02:40]}  d6 {[%clk 0:02:02]} 13. Nc3 {[%clk 0:02:39]}  Be6 {[%clk 0:01:22]} 14. exd6 {[%clk 0:02:39]}  Qxd6 {[%clk 0:01:22]} 15. Qxd6 {[%clk 0:02:39]}  cxd6 {[%clk 0:01:23]} 16. Bb3 {[%clk 0:02:36]}  Bxb3 {[%clk 0:01:15]} 17. axb3 {[%clk 0:02:36]}  Rfe8 {[%clk 0:01:15]} 18. Rxe8+ {[%clk 0:02:30]}  Rxe8 {[%clk 0:01:15]} 19. h4 {[%clk 0:02:31]}  Ne4 {[%clk 0:01:09]} 20. Nd5 {[%clk 0:01:51]}  a6 {[%clk 0:01:04]} 21. Rd1 {[%clk 0:01:41]}  Kf8 {[%clk 0:00:54]} 22. Ne3 {[%clk 0:01:33]}  g6 {[%clk 0:00:39]} 23. f3 {[%clk 0:01:31]}  Nc5 {[%clk 0:00:32]} 24. Kf2 {[%clk 0:01:30]}  Ke7 {[%clk 0:00:26]} 25. Nd5+ {[%clk 0:01:27]}  Kd8 {[%clk 0:00:24]} 26. b4 {[%clk 0:01:28]}  Nd7 {[%clk 0:00:23]} 27. Nf4 {[%clk 0:01:25]}  Kc7 {[%clk 0:00:21]} 28. Nd5+ {[%clk 0:01:25]}  Kc6 {[%clk 0:00:20]} 29. Rd4 {[%clk 0:01:16]}  b5 {[%clk 0:00:19]} 30. c3 {[%clk 0:01:12]}  Re6 {[%clk 0:00:18]} 31. g4 {[%clk 0:01:10]}  Ne5 {[%clk 0:00:17]} 32. b3 {[%clk 0:01:04]}  Nd7 {[%clk 0:00:17]} 33. Nf4 {[%clk 0:01:04]}  Re8 {[%clk 0:00:16]} 34. Nd5 {[%clk 0:01:03]}  Re6 {[%clk 0:00:15]} 35. Ne3 {[%clk 0:01:02]}  Nb6 {[%clk 0:00:11]} 36. h5 {[%clk 0:01:00]}  gxh5 {[%clk 0:00:10]} 37. gxh5 {[%clk 0:01:00]}  Re5 {[%clk 0:00:11]} 38. Rh4 {[%clk 0:00:57]}  Nd5 {[%clk 0:00:11]} 39. Ng4 {[%clk 0:00:58]}  Re6 {[%clk 0:00:07]} 40. Rh1 {[%clk 0:00:58]}  Nf4 {[%clk 0:00:06]} 41. Ne3 {[%clk 0:00:53]}  Re5 {[%clk 0:00:05]} 42. Rh4 {[%clk 0:00:49]}  Nxh5 {[%clk 0:00:04]} 43. f4 {[%clk 0:00:50]}  Nxf4 {[%clk 0:00:02]} 44. Rxf4 {[%clk 0:00:49]}  Rh5 {[%clk 0:00:02]} 45. Rxf7 {[%clk 0:00:48]}  Rh1 {[%clk 0:00:02]} 46. Ra7 {[%clk 0:00:47]}  Rb1 {[%clk 0:00:02]} 47. Rxa6+ {[%clk 0:00:47]}  Kd7 {[%clk 0:00:03]} 48. Nd5 {[%clk 0:00:43]}  Rxb3 {[%clk 0:00:02]} 49. Ke3 {[%clk 0:00:44]}  Rb1 {[%clk 0:00:02]} 50. Ra7+ {[%clk 0:00:43]}  Kc6 {[%clk 0:00:02]} 51. Ne7+ {[%clk 0:00:43]}  Kb6 {[%clk 0:00:03]} 52. Nc8+ {[%clk 0:00:44]}  Kc6 {[%clk 0:00:03]} 53. Rh7 {[%clk 0:00:44]}  Re1+ {[%clk 0:00:03]} 54. Kd3 {[%clk 0:00:44]}  Rd1+ {[%clk 0:00:03]} 55. Kc2 {[%clk 0:00:44]}  Rh1 {[%clk 0:00:04]} 56. Ne7+ {[%clk 0:00:44]}  Kb6 {[%clk 0:00:03]} 57. Nf5 {[%clk 0:00:45]}  h5 {[%clk 0:00:03]} 58. Nxd6 {[%clk 0:00:44]}  h4 {[%clk 0:00:03]} 59. Rh5 {[%clk 0:00:44]}  Kc6 {[%clk 0:00:03]} 60. Nxb5 {[%clk 0:00:44]}  h3 {[%clk 0:00:04]} 61. Nd4+ {[%clk 0:00:45]}  Kd6 {[%clk 0:00:04]} 62. b5 {[%clk 0:00:46]}  Kc7 {[%clk 0:00:03]} 63. Rh6 {[%clk 0:00:47]}  Rh2+ {[%clk 0:00:01]} 64. Kb3 {[%clk 0:00:47]}  Rh1 {[%clk 0:00:02]} 65. Kc4 {[%clk 0:00:48]}  h2 {[%clk 0:00:02]} 66. Kc5 {[%clk 0:00:48]} 1-0


[Site "https://www.chess.com"]

[Event "Titled Tuesday Blitz May 4 2021"]
[White "Vargas, Gabriela"]
[Black "Voege, Tobias"]
[WhiteFideId "3700860"]
[BlackFideId "1270513"]
[WhiteElo "2116"]
[BlackElo "2283"]
[Result "1-0"]
[Round "01"]
[TimeControl "180+1"]
[Date "2021.05.04"]
[WhiteClock "0:00:35"]
[BlackClock "0:00:05"]

1. d4 {[%clk 0:03:00]}  Nf6 {[%clk 0:02:56]} 2. Nf3 {[%clk 0:02:59]}  g6 {[%clk 0:02:56]} 3. Bg5 {[%clk 0:02:58]}  Bg7 {[%clk 0:02:56]} 4. c3 {[%clk 0:02:58]}  O-O {[%clk 0:02:55]} 5. Nbd2 {[%clk 0:02:58]}  d5 {[%clk 0:02:54]} 6. e3 {[%clk 0:02:57]}  Ne4 {[%clk 0:02:51]} 7. Bf4 {[%clk 0:02:57]}  Nxd2 {[%clk 0:02:49]} 8. Qxd2 {[%clk 0:02:58]}  b6 {[%clk 0:02:49]} 9. Bd3 {[%clk 0:02:56]}  Bb7 {[%clk 0:02:49]} 10. O-O {[%clk 0:02:56]}  c5 {[%clk 0:02:49]} 11. a4 {[%clk 0:02:55]}  Nc6 {[%clk 0:02:48]} 12. b4 {[%clk 0:02:52]}  Rc8 {[%clk 0:02:36]} 13. bxc5 {[%clk 0:02:40]}  bxc5 {[%clk 0:02:36]} 14. Rab1 {[%clk 0:02:35]}  Na5 {[%clk 0:02:33]} 15. Be5 {[%clk 0:02:25]}  c4 {[%clk 0:02:29]} 16. Bc2 {[%clk 0:02:24]}  Bc6 {[%clk 0:02:29]} 17. Bxg7 {[%clk 0:02:18]}  Kxg7 {[%clk 0:02:30]} 18. Ne5 {[%clk 0:02:16]}  Qc7 {[%clk 0:02:23]} 19. Nxc6 {[%clk 0:02:15]}  Qxc6 {[%clk 0:02:24]} 20. Rfe1 {[%clk 0:02:14]}  f5 {[%clk 0:02:16]} 21. f3 {[%clk 0:02:14]}  Rb8 {[%clk 0:02:12]} 22. e4 {[%clk 0:02:11]}  Rxb1 {[%clk 0:01:59]} 23. Bxb1 {[%clk 0:02:12]}  e6 {[%clk 0:01:58]} 24. exf5 {[%clk 0:02:04]}  exf5 {[%clk 0:01:57]} 25. Re7+ {[%clk 0:01:55]}  Rf7 {[%clk 0:01:57]} 26. Qe3 {[%clk 0:01:55]}  Qd6 {[%clk 0:01:36]} 27. Re6 {[%clk 0:01:49]}  Qc7 {[%clk 0:01:29]} 28. Re8 {[%clk 0:01:38]}  Nc6 {[%clk 0:01:20]} 29. Qe6 {[%clk 0:01:29]}  Qd7 {[%clk 0:01:14]} 30. Qxd7 {[%clk 0:01:23]}  Rxd7 {[%clk 0:01:15]} 31. Re6 {[%clk 0:01:24]}  Na5 {[%clk 0:01:08]} 32. Ra6 {[%clk 0:01:24]}  Nb3 {[%clk 0:01:07]} 33. Kf2 {[%clk 0:01:23]}  Kf7 {[%clk 0:01:03]} 34. Bc2 {[%clk 0:01:23]}  Ke7 {[%clk 0:00:49]} 35. g4 {[%clk 0:01:23]}  fxg4 {[%clk 0:00:46]} 36. fxg4 {[%clk 0:01:24]}  Rb7 {[%clk 0:00:45]} 37. h4 {[%clk 0:01:22]}  Nc1 {[%clk 0:00:40]} 38. Kf3 {[%clk 0:01:13]}  Na2 {[%clk 0:00:36]} 39. h5 {[%clk 0:01:10]}  gxh5 {[%clk 0:00:30]} 40. gxh5 {[%clk 0:01:11]}  Nxc3 {[%clk 0:00:30]} 41. Bxh7 {[%clk 0:01:10]}  Rc7 {[%clk 0:00:20]} 42. h6 {[%clk 0:01:09]}  Na2 {[%clk 0:00:20]} 43. Bf5 {[%clk 0:01:03]}  Kf8 {[%clk 0:00:19]} 44. h7 {[%clk 0:01:02]}  Kg7 {[%clk 0:00:19]} 45. Rg6+ {[%clk 0:01:00]}  Kxh7 {[%clk 0:00:15]} 46. Rc6+ {[%clk 0:01:00]}  Kg7 {[%clk 0:00:16]} 47. Rxc7+ {[%clk 0:01:01]}  Kf6 {[%clk 0:00:17]} 48. Kf4 {[%clk 0:00:55]}  a5 {[%clk 0:00:15]} 49. Rc6+ {[%clk 0:00:55]}  Ke7 {[%clk 0:00:15]} 50. Ke5 {[%clk 0:00:54]}  Nb4 {[%clk 0:00:13]} 51. Rc7+ {[%clk 0:00:53]}  Kd8 {[%clk 0:00:13]} 52. Rh7 {[%clk 0:00:53]}  c3 {[%clk 0:00:12]} 53. Kd6 {[%clk 0:00:52]}  Ke8 {[%clk 0:00:12]} 54. Ra7 {[%clk 0:00:45]}  c2 {[%clk 0:00:10]} 55. Bxc2 {[%clk 0:00:45]}  Nxc2 {[%clk 0:00:10]} 56. Rxa5 {[%clk 0:00:46]}  Nxd4 {[%clk 0:00:10]} 57. Rxd5 {[%clk 0:00:45]}  Nb3 {[%clk 0:00:09]} 58. Kc7 {[%clk 0:00:39]}  Ke7 {[%clk 0:00:08]} 59. a5 {[%clk 0:00:38]}  Ke6 {[%clk 0:00:07]} 60. Rd6+ {[%clk 0:00:38]}  Ke7 {[%clk 0:00:07]} 61. a6 {[%clk 0:00:38]}  Na5 {[%clk 0:00:06]} 62. Rd1 {[%clk 0:00:37]}  Nc4 {[%clk 0:00:06]} 63. a7 {[%clk 0:00:37]}  Ke6 {[%clk 0:00:05]} 64. a8=Q {[%clk 0:00:37]}  Ne5 {[%clk 0:00:06]} 65. Qd5+ {[%clk 0:00:35]}  Kf6 {[%clk 0:00:06]} 66. Rf1+ {[%clk 0:00:36]}  Kg6 {[%clk 0:00:05]} 67. Qxe5 {[%clk 0:00:35]}  Kh7 {[%clk 0:00:05]} 68. Qg3 {[%clk 0:00:35]}  Kh6 {[%clk 0:00:05]} 69. Rh1# {[%clk 0:00:35]} 1-0


[Site "https://www.chess.com"]